bitfinex-derivatives/quotes_SOLF0:USTF0_20250624
["timestamp","ask_amount","ask_price","bid_price","bid_amount"]
[1750768634788,6.9367,144.07,144.05,6.9373]
[1750768636994,35.76,144.1,144.05,6.9373]
[1750768637289,5.35646721,144.09,144.05,6.9373]
[1750768637483,6.9369,144.07,144.05,6.9373]
[1750768639592,14.18592544,144.09,144.01,7.98713711]
[1750768639794,16.06271395,144.08,144.01,2.1973]
[1750768639991,5.35718804,144.07,144.01,2.1973]
[1750768640202,35.7,144.06,144.0,3.46754655]
[1750768640396,5.36023063,144.05,144.0,3.46754655]
[1750768640595,6.9394,144.02,144.0,10.40734655]
[1750768640800,5.35891767,144.05,143.99,39.16840638]
[1750768640993,35.7,144.06,144.01,3.46840638]
[1750768641190,6.9386,144.03,144.01,10.40770638]
[1750768642390,5.35693178,144.05,144.01,3.46840638]
[1750768642592,35.7,144.06,144.01,3.46840638]
[1750768643600,6.9384,144.04,144.02,6.9389]
[1750768644298,6.9386,144.03,144.02,6.9389]
[1750768644496,35.7,144.06,144.02,6.9389]
[1750768644899,6.9384,144.04,144.02,6.9389]
[1750768648894,6.9378,144.05,144.02,6.9389]
[1750768649102,6.9378,144.05,144.03,6.9386]
[1750768651305,6.9381,144.04,144.02,6.9388]
[1750768651490,35.7,144.06,144.01,3.46840638]
[1750768651695,6.9381,144.04,144.01,6.9393]
[1750768652095,35.7,144.06,144.01,6.9393]
[1750768653704,6.9386,144.04,144.01,6.9393]
[1750768654007,35.7,144.06,144.01,6.9393]
[1750768654396,6.9388,144.03,144.01,6.9393]
[1750768655798,35.7,144.06,144.02,3.46840638]
[1750768656804,6.9386,144.04,144.02,10.40730638]
[1750768659007,6.9378,144.05,144.03,6.9386]
[1750768659907,35.7,144.06,144.05,6.9376]
[1750768660104,35.66,144.09,144.05,6.9376]
[1750768660411,12.2736255,144.08,144.06,6.9368]
[1750768660603,35.66,144.09,144.04,3.46840638]
[1750768661002,42.596,144.09,144.04,3.46840638]
[1750768661402,42.596,144.09,144.06,6.9367]
[1750768662609,42.596,144.09,144.04,3.46840638]
[1750768662610,42.596,144.09,144.07,6.9366]
[1750768662912,6.9354,144.1,144.07,6.9366]
[1750768664812,6.9354,144.1,144.06,3.46840638]
[1750768665110,6.935,144.11,144.06,3.46840638]
[1750768665513,6.935,144.11,144.08,6.9359]
[1750768665710,6.9352,144.1,144.08,6.9359]
[1750768666013,35.66,144.12,144.06,3.46840638]
[1750768666210,11.12858204,144.11,144.06,3.46840638]
[1750768666409,11.12815917,144.1,144.04,3.46840638]
[1750768666614,5.33040999,144.09,144.04,3.46840638]
[1750768666809,6.937,144.07,144.04,10.40620638]
[1750768667310,6.9372,144.06,144.04,10.40620638]
[1750768667517,6.9372,144.06,144.03,6.9383]
[1750768670615,35.66,144.08,144.02,3.46840638]
[1750768671019,35.66,144.08,144.03,6.9383]
[1750768671611,6.9375,144.06,144.03,6.9385]
[1750768671812,6.9375,144.06,144.02,3.46840638]
[1750768672213,6.9375,144.06,144.03,6.9381]
[1750768672416,6.9376,144.05,144.03,6.9381]
[1750768675219,6.9376,144.05,144.02,6.9389]
[1750768675417,35.66,144.08,144.01,3.46840638]
[1750768675617,14.59647912,144.07,144.0,37.8639]
[1750768675815,3.46840638,144.07,144.0,37.8639]
[1750768676119,6.9383,144.04,144.02,6.9389]
[1750768676712,6.9378,144.05,144.03,6.9386]
[1750768677323,6.9378,144.05,144.02,6.9388]
[1750768677915,6.9378,144.05,144.03,6.9385]
[1750768678116,6.9373,144.06,144.03,6.9385]
[1750768678522,6.9373,144.06,144.01,3.46840638]
[1750768679527,6.9373,144.06,144.03,6.9382]
[1750768680924,6.9377,144.05,144.02,6.9388]
[1750768681226,6.9377,144.05,144.01,3.46840638]
[1750768681723,5.79364451,144.07,144.02,6.939]
[1750768681929,35.66,144.08,144.02,6.939]
[1750768682123,11.10989318,144.07,144.02,6.939]
[1750768682328,35.66,144.08,144.02,6.939]
[1750768682629,6.9379,144.05,144.02,6.939]
[1750768683614,6.9382,144.04,144.02,6.939]
[1750768683818,6.9382,144.04,144.01,10.40770638]
[1750768684519,6.9386,144.03,144.01,10.40770638]
[1750768686029,6.9186,144.03,144.01,10.40770638]
[1750768687826,6.9186,144.03,144.01,3.46840638]
[1750768688024,35.6,144.04,143.96,4.5407]
[1750768688231,35.6,144.04,143.97,3.46840638]
[1750768688430,35.6,144.04,143.98,6.9407]
[1750768688732,6.9397,144.01,143.98,6.9407]
[1750768689342,6.9392,144.02,143.97,3.46840638]
[1750768689543,35.6,144.04,143.99,3.46840638]
[1750768689933,6.9388,144.03,143.99,3.46840638]
[1750768690337,35.6,144.04,143.99,3.46840638]
[1750768690338,6.9392,144.02,144.0,6.9398]
[1750768691345,6.9388,144.03,144.0,6.9398]
[1750768692745,6.9391,144.02,144.0,6.9398]
[1750768694052,6.9388,144.03,144.0,6.9398]
[1750768695243,6.9391,144.02,144.0,6.9398]
[1750768695643,35.6,144.04,144.01,6.9395]
[1750768695844,6.9388,144.03,144.01,6.9395]
[1750768696652,42.5383,144.04,144.02,6.9391]
[1750768697361,6.9386,144.03,144.01,6.9393]
[1750768697747,42.5383,144.04,144.02,6.9391]
[1750768698554,6.9386,144.03,144.01,6.9393]
[1750768699356,6.9391,144.02,144.0,6.9398]
[1750768699851,35.6,144.04,143.97,3.4689761]
[1750768700252,6.9391,144.02,143.99,6.9401]
[1750768700649,42.5383,144.04,144.02,6.9388]
[1750768701153,6.9383,144.04,144.02,6.9388]
[1750768701752,6.9386,144.03,144.01,6.9393]
[1750768704941,6.9394,144.02,143.97,3.4689761]
[1750768705351,6.9394,144.02,143.99,6.9401]
[1750768705551,6.9396,144.01,143.99,6.9401]
[1750768706554,6.9396,144.01,143.98,6.9406]
[1750768706960,35.6,144.03,143.96,42.5416]
[1750768707158,3.4689761,144.02,143.96,6.9416]
[1750768707457,6.941,143.98,143.96,6.9416]
[1750768707660,6.941,143.98,143.95,6.9422]
[1750768707858,3.4689761,144.02,143.94,2.3074]
[1750768708047,38.07688391,144.03,143.94,9.25]
[1750768708048,3.4689761,144.0,143.94,9.25]
[1750768708244,35.6,143.99,143.91,43.5066761]
[1750768708443,3.4689761,143.98,143.89,3.4689761]
[1750768708650,3.4689761,143.96,143.9,6.9445]
[1750768708848,35.6,143.95,143.9,6.9445]
[1750768709051,6.9438,143.93,143.9,6.9445]
[1750768709264,6.9438,143.93,143.91,6.9443]
[1750768709852,6.9431,143.94,143.92,6.9439]
[1750768710561,42.5426,143.95,143.92,6.9439]
[1750768710859,42.5426,143.95,143.93,6.9431]
[1750768711454,35.6,143.95,143.93,6.9431]
[1750768712050,42.5425,143.95,143.92,6.9436]
[1750768713660,42.5425,143.95,143.93,6.9434]
[1750768713850,35.6,143.95,143.93,6.9434]
[1750768718161,42.5425,143.95,143.92,6.9437]
[1750768719764,35.6,143.95,143.91,6.9442]
[1750768719960,35.6,143.95,143.89,139.17334172]
[1750768720366,35.6,143.95,143.9,6.9445]
[1750768721559,39.07334172,143.95,143.87,5.80874172]
[1750768722266,3.47334172,143.93,143.86,3.47334172]
[1750768722457,3.47334172,143.93,143.85,41.33064172]
[1750768722969,3.47334172,143.89,143.81,5.71414172]
[1750768723168,35.56,143.88,143.81,5.71414172]
[1750768723460,6.9471,143.86,143.83,6.948]
[1750768723666,35.56,143.88,143.83,3.47334172]
[1750768723865,35.56,143.88,143.85,6.9469]
[1750768723866,42.5059,143.88,143.85,6.9469]
[1750768724160,35.56,143.88,143.83,3.47334172]
[1750768724561,39.03334172,143.91,143.83,3.47334172]
[1750768724768,35.56,143.91,143.85,3.47334172]
[1750768725363,6.9451,143.9,143.87,6.9459]
[1750768726169,6.9451,143.9,143.88,6.9458]
[1750768726357,35.56,143.91,143.88,6.9458]
[1750768726553,35.56,143.91,143.85,3.47334172]
[1750768726760,6.9433,143.94,143.89,3.47334172]
[1750768726960,635.36,143.95,143.89,3.47334172]
[1750768727465,6.9432,143.94,143.91,6.9441]
[1750768727667,6.9432,143.94,143.89,3.47334172]
[1750768727869,6.9432,143.94,143.91,6.9441]
[1750768728163,635.36,143.95,143.91,6.9441]
[1750768728164,6.9435,143.93,143.91,6.9441]
[1750768729772,6.9431,143.94,143.91,6.9441]
[1750768731372,6.9434,143.93,143.91,6.9441]
[1750768732266,6.9431,143.94,143.92,6.9438]
[1750768733873,13.879,144.02,143.91,3.47334172]
[1750768734067,35.56,144.0,143.93,3.47334172]
[1750768734372,3.47334172,143.99,143.92,10.41694172]
[1750768734572,3.47334172,143.99,143.92,3.47334172]
[1750768735071,6.9425,143.95,143.93,6.9434]
[1750768736476,3.47334172,143.99,143.94,6.9426]
[1750768736770,3.47334172,143.99,143.92,3.47334172]
[1750768736963,6.9412,143.98,143.95,6.9424]
[1750768737668,6.9415,143.97,143.95,6.9424]
[1750768739771,6.9415,143.97,143.94,6.9427]
[1750768740272,35.56,144.0,143.92,3.47334172]
[1750768740466,3.47334172,143.99,143.89,2.4298]
[1750768740772,3.47334172,143.97,143.9,3.47334172]
[1750768740971,6.9441,143.92,143.89,6.9451]
[1750768741178,6.9441,143.92,143.88,3.47334172]
[1750768741179,35.56,143.96,143.88,3.47334172]
[1750768741484,6.9442,143.92,143.89,6.9452]
[1750768742476,6.9442,143.92,143.9,6.9448]
[1750768743472,35.56,143.91,143.85,5.69544172]
[1750768743670,35.56,143.91,143.85,2.2221]
[1750768743874,35.56,143.91,143.84,5.89944172]
[1750768744067,35.56,143.91,143.84,3.47334172]
[1750768744376,6.9466,143.87,143.84,10.42094172]
[1750768744875,6.946,143.88,143.85,6.9468]
[1750768746075,6.9456,143.89,143.86,3.47334172]
[1750768746470,6.945,143.9,143.87,6.9462]
[1750768748378,6.945,143.9,143.88,6.9457]
[1750768748875,6.9441,143.92,143.89,6.945]
[1750768749668,6.9441,143.92,143.9,6.9448]
[1750768750065,6.9441,143.92,143.87,4.5497]
[1750768750066,6.9444,143.91,143.87,4.5497]
[1750768750271,6.9444,143.91,143.88,10.41864172]
[1750768751472,6.9449,143.9,143.88,3.47334172]
[1750768751678,6.9449,143.9,143.87,11.4958]
[1750768751979,6.9449,143.9,143.87,4.5497]
[1750768753282,6.9449,143.9,143.88,6.9458]
[1750768753674,6.9449,143.9,143.87,6.946]
[1750768753871,6.9449,143.9,143.87,10.41934172]
[1750768754280,6.9454,143.89,143.87,10.41934172]
[1750768754481,35.54,143.94,143.87,10.41934172]
[1750768756186,10.61747274,143.93,143.87,10.41934172]
[1750768756387,38.00488938,143.94,143.87,10.41934172]
[1750768756589,15.8827721,143.93,143.87,10.41934172]
[1750768756787,5.25959205,143.92,143.87,10.41934172]
[1750768756980,10.62248378,143.93,143.87,10.41934172]
[1750768757179,5.30812374,143.92,143.87,10.41934172]
[1750768757487,10.62227234,143.93,143.88,6.9457]
[1750768757673,35.54,143.94,143.88,6.9457]
[1750768757875,35.54,143.94,143.87,3.47334172]
[1750768757876,40.411163,143.94,143.87,3.47334172]
[1750768758192,35.54,143.94,143.91,3.47334172]
[1750768758387,42.4832,143.94,143.91,3.47334172]
[1750768758688,35.54,143.97,143.91,3.47334172]
[1750768759380,6.9427,143.95,143.92,6.9435]
[1750768760785,6.9427,143.95,143.93,6.9433]
[1750768761987,6.9422,143.96,143.93,6.9433]
[1750768762682,6.9425,143.95,143.93,6.9433]
[1750768763492,6.9425,143.95,143.91,3.47334172]
[1750768763792,6.9422,143.96,143.91,3.47334172]
[1750768763991,6.9422,143.96,143.94,6.9429]
[1750768767791,35.54,144.0,143.95,3.47334172]
[1750768767991,35.54,144.0,143.97,3.47334172]
[1750768768184,6.9407,143.99,143.97,3.47334172]
[1750768768379,35.54,144.0,143.97,3.47334172]
[1750768768688,42.4803,144.0,143.98,6.9409]
[1750768768993,35.54,144.0,143.97,3.47334172]
[1750768769293,42.4804,144.0,143.97,10.41454172]
[1750768769493,35.54,144.0,143.97,10.41454172]
[1750768770192,42.4803,144.0,143.98,6.9409]
[1750768771089,42.4803,144.0,143.97,10.41454172]
[1750768772695,6.9405,143.99,143.97,10.41454172]
[1750768773094,35.54,144.0,143.97,3.47334172]
[1750768773695,42.4805,144.0,143.97,10.41454172]
[1750768773897,35.54,144.0,143.97,10.41454172]
[1750768774491,35.54,144.0,143.93,3.47334172]
[1750768775198,3.47334172,143.99,143.92,3.47334172]
[1750768775699,3.47334172,143.99,143.92,10.41694172]
[1750768775893,9.23475527,143.99,143.92,10.41694172]
[1750768776099,6.9429,143.95,143.92,10.41694172]
[1750768777099,6.9421,143.96,143.92,3.47334172]
[1750768777287,37.8384,144.0,143.94,3.47334172]
[1750768777492,35.54,144.0,143.94,3.47334172]
[1750768778292,6.9411,143.98,143.96,6.9417]
[1750768779685,6.9411,143.98,143.95,6.9422]
[1750768781594,6.9411,143.98,143.96,6.9419]
[1750768782398,6.9411,143.98,143.95,6.9422]
[1750768782596,6.9411,143.98,143.94,3.47334172]
[1750768783199,6.9411,143.98,143.95,6.942]
[1750768783392,6.9411,143.98,143.94,3.47334172]
[1750768784001,6.9411,143.98,143.95,6.9421]
[1750768784301,6.9411,143.98,143.94,3.47334172]
[1750768785187,6.9411,143.98,143.95,6.942]
[1750768785796,6.9411,143.98,143.96,6.9419]
[1750768786705,6.9411,143.98,143.95,6.9422]
[1750768787399,6.9411,143.98,143.96,6.9419]
[1750768787901,6.9415,143.97,143.94,3.47334172]
[1750768788101,6.9415,143.97,143.95,6.942]
[1750768788503,6.9415,143.97,143.96,6.9419]
[1750768788694,6.9413,143.98,143.96,6.9419]
[1750768788894,35.54,144.0,143.96,3.47334172]
[1750768789405,42.4803,144.0,143.96,3.47334172]
[1750768789597,42.4803,144.0,143.98,6.9406]
[1750768790297,35.54,144.0,143.98,6.9407]
[1750768790701,42.4801,144.0,143.98,6.9407]
[1750768791493,6.9405,143.99,143.97,6.9412]
[1750768793203,35.54,144.0,143.96,3.47334172]
[1750768794012,35.54,144.0,143.94,3.47334172]
[1750768795210,6.9414,143.98,143.95,6.9421]
[1750768796105,6.9407,143.99,143.94,3.47334172]
[1750768796907,42.4803,144.0,143.97,6.9413]
[1750768797212,35.54,144.0,143.94,3.47334172]
[1750768797604,6.9406,143.99,143.97,6.9412]
[1750768797910,35.54,144.0,143.96,3.47334172]
[1750768798109,42.4802,144.0,143.98,6.9409]
[1750768798312,35.54,144.0,143.96,3.47334172]
[1750768798716,35.48,144.03,143.96,3.47334172]
[1750768798909,35.48,144.03,143.98,3.47334172]
[1750768799213,6.9392,144.02,143.99,6.9403]
[1750768799410,6.9392,144.02,143.98,3.47334172]
[1750768800112,6.9392,144.02,143.99,6.9404]
[1750768800415,35.48,144.03,143.96,3.47334172]
[1750768800812,6.9403,144.0,143.97,6.9412]
[1750768802415,6.9403,144.0,143.96,3.47334172]
[1750768802913,6.9398,144.01,143.96,3.47334172]
[1750768803107,6.9398,144.01,143.95,35.48]
[1750768803108,35.48,144.03,143.95,35.48]
[1750768803309,5.34542836,144.02,143.95,38.95334172]
[1750768803612,6.9404,144.0,143.97,6.9412]
[1750768805105,6.9404,144.0,143.95,38.95334172]
[1750768805106,6.9404,144.0,143.98,6.941]
[1750768805511,6.9404,144.0,143.95,38.95334172]
[1750768807016,6.9397,144.01,143.95,38.95334172]
[1750768807319,6.9397,144.01,143.97,3.47334172]
[1750768807609,35.48,144.03,143.97,3.47334172]
[1750768808315,35.48,144.03,144.0,6.9397]
[1750768809215,6.9391,144.02,144.0,6.9397]
[1750768810420,35.48,144.03,143.95,35.48]
[1750768810717,35.48,144.03,143.96,3.47334172]
[1750768810718,16.03096441,144.02,143.96,3.47334172]
[1750768810914,6.9405,144.0,143.97,6.9412]
[1750768811311,38.95334172,144.03,143.97,6.9412]
[1750768811621,16.03212821,144.02,143.97,6.9412]
[1750768811818,5.35275412,144.01,143.97,6.9412]
[1750768812115,38.95334172,144.03,143.97,6.9412]
[1750768812418,6.9405,143.99,143.97,6.9412]
[1750768813019,38.95334172,144.03,143.96,3.47334172]
[1750768813215,18.54390749,144.02,143.96,3.47334172]
[1750768813424,5.79084075,144.01,143.96,3.47334172]
[1750768813719,2.49188228,144.02,143.94,3.47334172]
[1750768813915,16.05248938,144.01,143.94,3.47334172]
[1750768814120,6.941,143.98,143.94,3.47334172]
[1750768814719,6.941,143.98,143.96,6.9419]
[1750768814919,18.54442625,144.02,143.94,3.47334172]
[1750768815121,11.14990244,144.01,143.94,3.47334172]
[1750768815315,6.9403,144.0,143.97,6.9412]
[1750768815720,38.95334172,144.03,143.97,6.9412]
[1750768815721,4.90483183,144.02,143.97,6.9412]
[1750768815922,6.9401,144.0,143.97,6.9412]
[1750768816122,3.47334172,144.03,143.97,6.9412]
[1750768816323,16.05598093,144.02,143.97,6.9412]
[1750768816535,6.9407,143.99,143.96,10.41504172]
[1750768817529,6.9407,143.99,143.97,6.9414]
[1750768819739,6.9402,144.0,143.97,6.9414]
[1750768820339,5.89804172,144.05,143.96,3.47334172]
[1750768820539,18.53252074,144.04,143.98,3.47334172]
[1750768820841,16.03823517,144.03,143.98,3.47334172]
[1750768821043,12.29252856,144.02,143.99,6.9402]
[1750768821343,6.9393,144.02,143.98,3.47334172]
[1750768823241,6.9393,144.02,144.0,6.94]
[1750768823647,6.9388,144.03,144.0,6.94]
[1750768824144,6.9388,144.03,144.01,6.9395]
[1750768825248,6.9388,144.03,144.0,6.9398]
[1750768825946,6.9391,144.02,144.0,6.9398]
[1750768826946,6.9388,144.03,144.0,6.9398]
[1750768828138,6.9388,144.03,143.98,3.47334172]
[1750768829347,6.9391,144.02,143.98,3.47334172]
[1750768829744,6.9391,144.02,144.0,6.9398]
[1750768830542,3.47334172,144.04,143.96,3.47334172]
[1750768830849,16.32794494,144.03,143.95,3.47334172]
[1750768831043,19.80261602,144.02,143.96,6.9419]
[1750768831347,11.41679499,144.01,143.95,3.47334172]
[1750768831539,3.47334172,144.05,143.97,3.47334172]
[1750768831850,18.83312746,144.04,143.97,3.47334172]
[1750768832150,18.36008895,144.03,143.99,3.47334172]
[1750768832357,6.9389,144.03,143.99,3.47334172]
[1750768833345,2.49791755,144.05,143.99,3.47334172]
[1750768833654,2.2045,144.07,144.02,6.9388]
[1750768833949,16.22147144,144.06,144.02,6.9388]
[1750768834149,18.24587339,144.05,144.02,6.9388]
[1750768834351,2.2045,144.07,144.02,6.9388]
[1750768834552,16.22210175,144.06,144.02,6.9388]
[1750768834851,11.30837851,144.05,144.02,6.9388]
[1750768835150,2.2045,144.07,144.02,6.9388]
[1750768835342,16.21732637,144.06,144.02,6.9388]
[1750768835546,5.93704501,144.05,144.02,6.9388]
[1750768835851,2.2045,144.07,144.02,6.9388]
[1750768836049,16.04457148,144.06,144.02,6.9388]
[1750768836348,12.87418606,144.05,144.02,6.9388]
[1750768836550,6.9381,144.05,144.02,6.9388]
[1750768838852,6.9381,144.05,144.03,6.9385]
[1750768839039,2.3262,144.09,144.03,6.9385]
[1750768839244,18.56465351,144.08,144.03,6.9385]
[1750768839546,6.9374,144.06,144.04,6.9381]
[1750768839952,8.04824172,144.1,144.04,6.9381]
[1750768840150,18.56231528,144.09,144.05,3.47334172]
[1750768840353,5.95134842,144.08,144.05,3.47334172]
[1750768840545,2.50060934,144.09,144.05,3.47334172]
[1750768840848,12.88719215,144.08,144.05,10.41064172]
[1750768841149,2.50101031,144.09,144.05,10.41064172]
[1750768841353,12.88827479,144.08,144.05,10.41064172]
[1750768841556,6.9366,144.08,144.05,10.41064172]
[1750768841850,2.50118265,144.09,144.03,3.47334172]
[1750768842150,5.79514172,144.1,144.03,3.47334172]
[1750768842151,16.06696737,144.08,144.03,3.47334172]
[1750768842352,2.50143122,144.09,144.03,3.47334172]
[1750768842546,16.07840142,144.08,144.03,10.41164172]
[1750768842747,2.50060852,144.09,144.03,10.41164172]
[1750768842948,11.15807479,144.08,144.03,10.41164172]
[1750768843150,6.9375,144.06,144.03,10.41164172]
[1750768844345,6.9375,144.06,144.04,6.9379]
[1750768844558,6.9369,144.07,144.03,3.47334172]
[1750768844848,10.1027381,144.09,144.05,6.9373]
[1750768845044,12.89563893,144.08,144.05,6.9373]
[1750768845246,6.9365,144.08,144.03,3.47334172]
[1750768845749,6.9365,144.08,144.06,6.9369]
[1750768845956,10.1024837,144.09,144.05,3.47334172]
[1750768845957,6.9359,144.09,144.05,3.47334172]
[1750768846152,5.95818594,144.08,144.05,3.47334172]
[1750768846348,6.936,144.09,144.05,3.47334172]
[1750768846844,2.49673514,144.1,144.06,6.9369]
[1750768847045,5.95715764,144.09,144.06,6.9369]
[1750768847256,6.9362,144.08,144.06,6.9369]
[1750768849044,12.59080741,144.1,144.03,3.47334172]
[1750768849249,5.95607543,144.09,144.03,3.47334172]
[1750768849447,2.49673514,144.1,144.03,3.47334172]
[1750768849646,5.95562104,144.09,144.03,3.47334172]
[1750768849850,7.69846755,144.1,144.03,3.47334172]
[1750768850045,11.15748365,144.09,144.03,3.47334172]
[1750768850248,5.95573782,144.08,144.03,3.47334172]
[1750768850555,5.17059539,144.09,144.03,3.47334172]
[1750768850855,5.95563694,144.08,144.03,3.47334172]
[1750768851059,6.9374,144.06,144.04,6.9379]
[1750768854454,6.9369,144.07,144.05,6.9372]
[1750768854655,5.97007686,144.12,144.05,3.47334172]
[1750768854853,16.03462206,144.11,144.05,3.47334172]
[1750768855053,6.9358,144.09,144.07,6.9364]
[1750768855556,6.9356,144.1,144.07,6.9363]
[1750768858164,6.9357,144.09,144.07,6.9363]
[1750768859465,6.9362,144.08,144.06,6.9369]
[1750768859666,5.87975578,144.11,144.05,3.47334172]
[1750768859857,2.4939095,144.12,144.05,3.47334172]
[1750768860060,6.9357,144.1,144.07,6.9364]
[1750768860260,2.4939095,144.12,144.07,6.9364]
[1750768860462,6.936,144.09,144.06,6.9369]
[1750768860766,5.97124505,144.12,144.05,3.47334172]
[1750768860961,6.936,144.09,144.07,6.9366]
[1750768861263,6.936,144.09,144.05,3.47334172]
[1750768861771,6.9362,144.08,144.06,6.9369]
[1750768864253,6.9359,144.09,144.06,6.9369]
[1750768864458,6.9359,144.09,144.05,3.47334172]
[1750768865163,6.9354,144.1,144.05,3.47334172]
[1750768865362,2.50108243,144.12,144.07,3.47334172]
[1750768865560,15.99089608,144.11,144.07,3.47334172]
[1750768865754,5.88696347,144.1,144.07,3.47334172]
[1750768865955,6.9352,144.11,144.07,3.47334172]
[1750768866171,6.9352,144.11,144.08,6.9359]
[1750768866660,6.9352,144.1,144.08,6.9359]
[1750768867069,3.47334172,144.11,144.01,6.9442]
[1750768867368,2.4216,144.14,144.02,3.46696649]
[1750768867369,21.96121821,144.1,144.02,3.46696649]
[1750768867558,15.9927513,144.09,144.03,6.9382]
[1750768867861,6.9373,144.06,144.02,3.46715884]
[1750768868270,6.9373,144.06,144.03,6.9383]
[1750768868670,6.9373,144.06,144.04,6.938]
[1750768868972,3.46715884,144.1,144.04,3.46715884]
[1750768869266,16.00886998,144.09,144.04,3.46715884]
[1750768869572,2.50344065,144.1,144.05,6.9373]
[1750768869771,16.00912819,144.09,144.05,6.9373]
[1750768870063,5.89696316,144.08,144.05,6.9373]
[1750768870272,3.46715884,144.1,144.04,6.9378]
[1750768870471,6.9369,144.07,144.02,3.46715884]
[1750768870870,6.9369,144.07,144.05,6.9374]
[1750768871766,6.9364,144.08,144.06,6.9371]
[1750768872786,6.9364,144.08,144.02,3.46715884]
[1750768874176,6.9364,144.08,144.06,6.9371]
[1750768874871,6.9359,144.09,144.07,6.9366]
[1750768875065,3.46715884,144.12,144.04,3.46715884]
[1750768875269,13.31225574,144.11,144.04,3.46715884]
[1750768875468,3.46715884,144.12,144.04,3.46715884]
[1750768875469,10.80796407,144.1,144.06,6.9368]
[1750768875669,5.88349124,144.09,144.06,6.9368]
[1750768875868,2.50408005,144.11,144.06,6.9368]
[1750768876066,10.80539893,144.1,144.06,6.9368]
[1750768876261,5.88271184,144.09,144.06,6.9368]
[1750768876477,2.50330451,144.11,144.04,3.46715884]
[1750768876775,13.3085279,144.1,144.01,6.9442]
[1750768876962,10.80536226,144.09,144.03,3.46715884]
[1750768877167,10.80536226,144.08,144.01,10.41135884]
[1750768877471,10.80800451,144.07,144.02,6.9387]
[1750768877671,5.88262721,144.06,144.02,6.9387]
[1750768877976,3.46715884,144.08,144.02,6.9387]
[1750768878169,5.88528238,144.07,144.02,6.9387]
[1750768878371,6.9377,144.05,144.02,6.9387]
[1750768878773,6.9377,144.05,144.03,6.9384]
[1750768880076,6.9373,144.06,144.03,6.9384]
[1750768880275,6.9373,144.06,144.04,6.9379]
[1750768883377,8.55114463,144.11,144.03,3.46715884]
[1750768883579,5.89154038,144.1,144.03,3.46715884]
[1750768883881,6.9365,144.08,144.05,6.9373]
[1750768884475,6.9367,144.07,144.05,6.9373]
[1750768884973,6.9369,144.07,144.04,6.9378]
[1750768885480,3.46715884,144.1,144.01,6.9442]
[1750768885682,3.46715884,144.08,144.01,10.41135884]
[1750768885882,5.88250931,144.07,144.01,5.66755884]
[1750768886071,9.34966815,144.06,143.99,3.46715884]
[1750768886279,3.46715884,144.04,143.97,3.46715884]
[1750768886578,3.46715884,144.04,143.95,6.9976]
[1750768886579,6.9409,143.99,143.96,6.9418]
[1750768886785,3.46715884,144.04,143.95,10.46475884]
[1750768886988,6.9407,143.99,143.95,10.46475884]
[1750768887385,6.9407,143.99,143.96,6.9417]
[1750768887589,3.46715884,144.04,143.95,10.46475884]
[1750768887590,6.9403,144.0,143.95,10.46475884]
[1750768887775,3.46715884,144.04,143.95,10.46475884]
[1750768887979,5.873716,144.03,143.98,6.9407]
[1750768888177,6.9398,144.01,143.98,6.9407]
[1750768888681,6.9398,144.01,143.97,3.46715884]
[1750768888888,6.9393,144.02,143.97,3.46715884]
[1750768889481,5.8316252,144.05,143.99,3.46715884]
[1750768889685,3.46715884,144.06,143.99,3.46715884]
[1750768889686,3.46715884,144.06,144.0,6.9398]
[1750768889886,6.9388,144.03,144.0,6.9398]
[1750768892281,6.9391,144.02,144.0,6.9398]
[1750768893686,6.9395,144.01,143.99,10.40755884]
[1750768894391,6.9395,144.01,143.98,6.9408]
[1750768894691,13.47737119,144.04,143.95,10.46475884]
[1750768894891,5.81687495,144.03,143.96,6.9416]
[1750768895192,6.9407,143.99,143.96,6.9416]
[1750768895792,6.9403,144.0,143.95,10.46475884]
[1750768896695,6.9398,144.01,143.95,10.46475884]
[1750768896890,3.46715884,144.04,143.97,3.46715884]